Workbook

Sheet Sheet1
A1: 贵安新区纪检监察工委面向全省2018年退役消防官兵公开招聘雇员 面试成绩、总成绩及进入体检环节名单
A2: 报考岗位及代码 | B2: 姓名 | C2: 准考证号 | D2: 体能成绩 | G2: 笔试成绩 | J2: 面试成绩 | M2: 总成绩 | N2: 排名 | O2: 是否进入体检
D3: 折算前 | E3: 比例 | F3: 折算后 | G3: 折算前 | H3: 比例 | I3: 折算后 | J3: 折算前 | K3: 比例 | L3: 折算后
A4: 01 | B4: 姚三林 | C4: 20190107 | D4: 49 | E4: 30% | F4: =D4*E4 -> 14.7 | G4: 71.5 | H4: 20% | I4: =G4*H4 -> 14.30 | J4: 87.70 | K4: 50% | L4: =J4/2 -> 43.85 | M4: =F4+I4+L4 -> 72.85 | N4: 1 | O4: 是
A5: 01 | B5: 黄啟洪 | C5: 20190103 | D5: 51 | E5: 30% | F5: =D5*E5 -> 15.3 | G5: 64.1 | H5: 20% | I5: =G5*H5 -> 12.82 | J5: 83.30 | K5: 50% | L5: =J5/2 -> 41.65 | M5: =F5+I5+L5 -> 69.77 | N5: 2 | O5: 是
A6: 01 | B6: 卢林春 | C6: 20190102 | D6: 38 | E6: 30% | F6: =D6*E6 -> 11.4 | G6: 73.2 | H6: 20% | I6: =G6*H6 -> 14.64 | J6: 87.30 | K6: 50% | L6: =J6/2 -> 43.65 | M6: =F6+I6+L6 -> 69.69 | N6: 3 | O6: 是
A7: 01 | B7: 宋 浪 | C7: 20190105 | D7: 48 | E7: 30% | F7: =D7*E7 -> 14.4 | G7: 61.4 | H7: 20% | I7: =G7*H7 -> 12.28 | J7: 84.30 | K7: 50% | L7: =J7/2 -> 42.15 | M7: =F7+I7+L7 -> 68.83 | N7: 4 | O7: 否
A8: 01 | B8: 王元亮 | C8: 20190104 | D8: 33 | E8: 30% | F8: 9.9 | G8: 58.5 | H8: 20% | I8: 11.70 | J8: 89.70 | K8: 50% | L8: 44.85 | M8: 66.45 | N8: 5 | O8: 否
A9: 01 | B9: 蔡 营 | C9: 20190108 | D9: 27 | E9: 30% | F9: 8.1 | G9: 59.4 | H9: 20% | I9: 11.88 | J9: 80.00 | K9: 50% | L9: 40.00 | M9: 59.98 | N9: 6 | O9: 否
A10: 01 | B10: 罗仕玉 | C10: 20190101 | D10: 32 | E10: 30% | F10: 9.6 | G10: 51.2 | H10: 20% | I10: 10.24 | J10: 76.70 | K10: 50% | L10: 38.35 | M10: 58.19 | N10: 7 | O10: 否

Sheet Sheet2

Sheet Sheet3
